Cogmind - Beta 17 @@@ ROGUE MODE // 2026.07.19 @ 15:01:18 Player: Zamshi Result: Destroyed by S-10 Pest with Light Assault Rifle Performance ------------- Evolutions (0) 0 Regions Visited (2) 400 Robots Destroyed (7) 35 Value Destroyed (281) 281 Prototype IDs (0) 0 Alien Tech Used (0) 0 Bonus (0) 0 TOTAL SCORE: 716 Bonus ------- None Cogmind --------- Core Integrity 0/250 Matter 222/300 Energy 100/100 System Corruption 0% Temperature Cool (0) Movement Core (100) Ox1 Location -10/Subcaves Parts ------- > --- POWER (1) -------- (None) > --- PROPULSION (2) --- (None) > --- UTILITY (2) ------ Small Storage Unit > --- WEAPON (2) ------- (None) > --- INVENTORY (8) ---- Aluminum Leg Improved Heat Sink Propulsion Shielding Particle Gun Light Assault Rifle Subdweller Machine Gun Datajack Peak State ------------ > --- POWER ------------ Ion Engine > --- PROPULSION ------- Aluminum Leg Aluminum Leg > --- UTILITY ---------- Improved Heat Sink Small Storage Unit > --- WEAPON ----------- Assault Rifle Light Assault Rifle > --- INVENTORY -------- Propulsion Shielding Particle Gun Grenade Launcher Datajack [Rating: 9] Favorites ----------- Power Ion Engine Engine Ion Engine Propulsion Aluminum Leg Leg Aluminum Leg Utility Small Storage Unit Device Improved Heat Sink Storage Small Storage Unit Weapon Assault Rifle Ballistic Gun Assault Rifle Launcher Grenade Launcher Build | -11 -10 -10 ------- Run | Yrd Mat Sub Slots Evolved . | . . . Power . | . . . Propulsion . | . . . Utility . | . . . Weapon . | . . . Parts Attached 8 | 6 1 1 Power 1 | 1 . . Engine 1 | 1 . . Core . | . . . Reactor . | . . . Propulsion 2 | 2 . . Treads . | . . . Leg 2 | 2 . . Wheel . | . . . Hover . | . . . Flight . | . . . Utility 2 | 1 1 . Device 1 | . 1 . Storage 1 | 1 . . Processor . | . . . Hackware . | . . . Protection . | . . . Artifact . | . . . Weapon 3 | 2 . 1 Energy Gun . | . . . Energy Cannon . | . . . Ballistic Gun 2 | 2 . . Ballistic Cannon . | . . . Launcher 1 | . . 1 Special Weapon . | . . . Impact Weapon . | . . . Slashing Weapon . | . . . Piercing Weapon . | . . . Special Melee Weapon . | . . . Unidentified Prototypes . | . . . Parts Lost 4 | . . 4 Power 1 | . . 1 Propulsion 1 | . . 1 Utility . | . . . Weapon 2 | . . 2 Highest Loss Streak 3 | . . 3 To Critical Strikes . | . . . Average Backups 3 | . 2 5 Power . | . . . Propulsion . | . . . Utility . | . . 1 Weapon 1 | . 1 2 Tool/Special . | . . . Unused Backups 4 | . . 4 Power . | . . . Propulsion . | . . . Utility 1 | . . 1 Weapon 2 | . . 2 Tool/Special 1 | . . 1 Average Slot Usage (%) 73 | . 90 60 Engine 10 | . 14 7 Leg 18 | . 25 13 Device 7 | . 7 7 Storage 14 | . 14 14 Ballistic Gun 18 | . 28 11 Launcher 3 | . . 5 Peak Build Rating 9 | 6 9 9 Average Rating 6 | 3 7 5 On Entrance 5 | . 6 9 Avg Prop Armor Cover (%) . | . . . Naked Turns . | . . . Heaviest Build 14 | 13 14 14 Greatest Support 20 | 20 20 20 Greatest Overweight (x) 2 | 1 1 2 Average Overweight (x) . | . . . Largest Inventory Capacity 8 | 8 8 8 Average Capacity 7 | 6 8 8 Most Carried 8 | . 5 8 Average Carried 3 | . 2 5 Final Capacity 8 | 8 8 8 Final Carried 7 | . 4 7 Class Distribution -------------------- 100% | Mutant Dominant Class ---------------- Mutant | -10/Materials Mutant | -10/Subcaves Resources | -11 -10 -10 ----------- Run | Yrd Mat Sub Matter Collected 405 | 225 85 95 Remotely . | . . . Salvage Created 201 | . 87 114 Parts 14 | . 6 8 Haulers Intercepted . | . . . Recyclers Shooed . | . . . Parts Field Recycled . | . . . Retrieved Matter . | . . . Parts Self-Destructed . | . . . Prevented . | . . . Parts Restored . | . . . Kills | -11 -10 -10 ------- Run | Yrd Mat Sub Combat Hostiles Destroyed 7 | . 2 5 Guns 2 | . 2 . AOE 5 | . . 5 Classes Destroyed 2 | . 1 1 Grunt 2 | . 2 . Subdweller 5 | . . 5 Best Kill Streak 2 | . 2 2 Combat Bots Only 2 | . 2 2 Max Kills in Single Turn 2 | . 1 2 Gunslinging . | . . . Exploded 2 | . . 2 Melee . | . . . Uniques/NPCs Destroyed . | . . . Combat | -11 -10 -10 -------- Run | Yrd Mat Sub Hostile Shots Fired 82 | . 32 50 Missed 34 | . 12 22 Hits 48 | . 20 28 Projectile 48 | . 20 28 Critical Strikes 1 | . 1 . Damage Taken 808 | . 294 514 Core 250 | . 61 189 Absorbed by Shields . | . . . Core Remaining (%) 100 | 100 . . Volleys Fired 32 | . 13 19 Largest 2 | . 2 2 Hottest 50 | . 40 50 Shots Fired 48 | . 26 22 Gun 35 | . 26 9 Cannon . | . . . Launcher 13 | . . 13 Special . | . . . Kinetic 35 | . 26 9 Thermal . | . . . Explosive 13 | . . 13 Electromagnetic . | . . . Robot Hit Streak 8 | . 4 8 Robot Miss Streak 3 | . 3 1 Penetration Max . | . . . Secondary Targets . | . . . Shots Hit Robots 35 | . 17 18 Core Hits 17 | . 6 11 Critical Kills . | . . . Critical Parts Destroyed . | . . . Critical Strikes . | . . . Melee Attacks . | . . . Impact . | . . . Slashing . | . . . Piercing . | . . . Sneak Attacks . | . . . Combat Hostiles . | . . . Follow-up Attacks . | . . . Damage Inflicted 766 | . 161 605 Guns 229 | . 159 70 Cannons . | . . . Explosions 535 | . . 535 Melee . | . . . Ramming 2 | . 2 . Kinetic 229 | . 159 70 Thermal . | . . . Explosive 535 | . . 535 Electromagnetic . | . . . Impact . | . . . Slashing . | . . . Piercing . | . . . Highest Corruption . | . . . Average Corruption . | . . . Corruption Purged . | . . . Corruption Blocked . | . . . Overload Shots . | . . . Overflow Damage . | . . . Projectiles . | . . . Explosions . | . . . Melee . | . . . Knockbacks . | . . . Impact . | . . . Kinetic . | . . . Secondary . | . . . Self-Inflicted Damage . | . . . Shots . | . . . Rammed . | . . . Targets Rammed 1 | . 1 . Kicked 1 | . 1 . Crushed . | . . . Highest Temperature 27 | . 27 . Average Temperature 10 | . 10 . Received Heat Transfer 186 | . 162 24 Siege Activations . | . . . Martial Activations . | . . . Shielding Activations . | . . . Robots Disrupted . | . . . Combat Hostiles . | . . . Robots Corrupted . | . . . Combat Hostiles . | . . . Parts Fried . | . . . Impact Corruptions . | . . . Robots Melted . | . . . Combat Hostiles . | . . . Parts Melted . | . . . Heat Transferred . | . . . Parts Sabotaged . | . . . Parts Stolen . | . . . Parts Stripped . | . . . Power Chain Reactions . | . . . Alert | -11 -10 -10 ------- Run | Yrd Mat Sub Maximum Alert Level . | . . . Low Security (%) 100 | 100 100 . Level 1 . | . . . Level 2 . | . . . Level 3 . | . . . Level 4 . | . . . Level 5 . | . . . High Security . | . . . Max Security . | . . . Peak Influence 40 | . 40 . Initial . | . . . Average 6 | . 9 . Influence Increases 50 | . 50 . Destroy 0b10 Robot/C 40 | . 40 . Destroy Leader 10 | . 10 . Influence Decreases 50 | . 50 . Time Decay 50 | . 50 . Squads Dispatched . | . . . Investigation . | . . . Extermination . | . . . Reinforcement . | . . . Assault . | . . . Garrison . | . . . Intercept . | . . . Searches Triggered . | . . . Construction Impeded . | . . . Haulers Reinforced . | . . . Active Scanning Responses . | . . . Cargo Convoy Interrupts . | . . . Stealth | -11 -10 -10 --------- Run | Yrd Mat Sub Distress Signals . | . . . Communications Jammed . | . . . Distress Signals . | . . . Times Spotted 13 | . 2 11 Peak Tracking Total 6 | . 2 6 Tactical Retreats . | . . . Traps | -11 -10 -10 ------- Run | Yrd Mat Sub Traps Triggered 1 | . 1 . Indirectly . | . . . Trap Hack Attempts . | . . . Triggered . | . . . Disarmed . | . . . Reprogrammed . | . . . Reused . | . . . Traps Extracted . | . . . Installed . | . . . Triggered . | . . . Machines | -11 -10 -10 ---------- Run | Yrd Mat Sub Machines Disabled . | . . . Max in Single Turn . | . . . Machines Repaired . | . . . Machines Dismantled . | . . . Machines Sabotaged . | . . . Overloaded Fab Kills . | . . . Hacking | -11 -10 -10 --------- Run | Yrd Mat Sub Machines Accessed . | . . . Terminals . | . . . Fabricators . | . . . Repair Stations . | . . . Recycling Units . | . . . Scanalyzers . | . . . Garrison Access . | . . . Total Hacks . | . . . Successful . | . . . Failed . | . . . Catastrophic . | . . . Database Lockouts . | . . . Manual . | . . . Terminals . | . . . Fabricators . | . . . Repair Stations . | . . . Recycling Units . | . . . Scanalyzers . | . . . Garrison Access . | . . . Terminal Hacks . | . . . Fabricator Hacks . | . . . Repair Station Hacks . | . . . Recycling Unit Hacks . | . . . Scanalyzer . | . . . Garrison Access Hacks . | . . . Unauthorized Hacks . | . . . Terminals . | . . . Fabricators . | . . . Repair Stations . | . . . Recycling Units . | . . . Scanalyzers . | . . . Garrison Access . | . . . Data Cores Recovered . | . . . Used . | . . . Hacking Detections . | . . . Full Trace Events . | . . . Feedback Events . | . . . Feedback Blocked . | . . . Robot Schematics Acquired . | . . . Robots Built . | . . . Authchips . | . . . Time . | . . . Total Robot Build Rating . | . . . Part Schematics Acquired . | . . . Parts Built . | . . . Authchips . | . . . Time . | . . . Total Part Build Rating . | . . . Part Studies Acquired . | . . . Parts Repaired . | . . . Time . | . . . Parts Recycled . | . . . Recycled Matter . | . . . Retrieved Matter . | . . . Retrieved Components . | . . . Parts Scanalyzed . | . . . Part Schematics Acquired . | . . . Parts Damaged . | . . . Bothacking | -11 -10 -10 ------------ Run | Yrd Mat Sub Used RIF Installer . | . . . Robots Hacked . | . . . Non-combat . | . . . Combat . | . . . Robot Hacks Applied . | . . . Relay Couplers Released . | . . . Fabnet Peak Effective % . | . . . Robots Rewired . | . . . Allies Hacked . | . . . Hacks Repelled . | . . . Allies | -11 -10 -10 -------- Run | Yrd Mat Sub Total Allies . | . . . Largest Group . | . . . Highest-Rated Group . | . . . Highest-Rated Ally . | . . . Total Orders . | . . . Ally Attacks . | . . . Total Damage . | . . . Kills . | . . . Allies Corrupted . | . . . Allies Melted . | . . . Intel | -11 -10 -10 ------- Run | Yrd Mat Sub Active Infowar (turns) . | . . . Robot Analysis Total . | . . . Derelict Logs Recovered . | . . . Drone Launches . | . . . Drone Recoveries . | . . . Exploration | -11 -10 -10 ------------- Run | Yrd Mat Sub Turns Passed 506 | 69 195 242 Spaces Moved 328 | 48 118 162 Core 103 | 13 . 90 Treads . | . . . Legs 225 | 35 118 72 Wheels . | . . . Hover . | . . . Flight . | . . . Fastest Speed 50 | 50 120 100 Average Speed 121 | 105 127 121 Slowest Speed 190 | 120 190 190 Overloaded Moves . | . . . Propulsion Burnouts . | . . . Robots Hopped . | . . . Potential Cave-ins . | . . . Cave-ins Triggered . | . . . Exploration Rate (%) 11 | 4 22 8 Regions Visited 2 Branch Regions 1 Pre-discovered Areas . | . . . Known Exits Taken . | . . . Unknown Exits Taken 2 | 1 1 . Scrap Searched . | . . . Spaces Dug . | . . . Terrain Destroyed 48 | . . 48 Melee . | . . . Projectile . | . . . AOE 48 | . . 48 Terrain Rammed . | . . . Walls Destroyed . | . . . Machines Disabled . | . . . Actions | -11 -10 -10 --------- Run | Yrd Mat Sub Total 389 | 63 138 188 Wait 10 | 10 . . Move 326 | 47 117 162 Hop . | . . . Pick Up 5 | . 4 1 Fast Attach 7 | 6 1 . Attach 3 | . 1 2 Detach 5 | . 1 4 Swap . | . . . Drop . | . . . Fire 32 | . 13 19 Melee . | . . . Ram . | . . . Kick 1 | . 1 . Crush . | . . . Escape Stasis . | . . . Rewire . | . . . Trap . | . . . Miscellaneous . | . . . Route ------- -11/Scrapyard -10/Materials (discovered 2 exits: [*Mat] / [*Sub]) -10/Subcaves History --------- Turn | Location | Event 33 | -11/Scrapyard | Discovered new exit (range 16) 70 | -11/Scrapyard | Entered Materials 254 | -10/Materials | Discovered new exit (range 5) 254 | -10/Materials | Discovered new exit (range 5) 265 | -10/Materials | Entered Subcaves 266 | -10/Subcaves | Approached by a straggling Scientist 310 | -10/Subcaves | Build established: Mutant 366 | -10/Subcaves | Core integrity fell below 50% 379 | -10/Subcaves | Ambushed by Subdweller buried in earth 382 | -10/Subcaves | Core integrity fell below 20% 413 | -10/Subcaves | Lost 3 parts (1p1n1w) 507 | -10/Subcaves | Destroyed by S-10 Pest with Light Assault Rifle Last Messages --------------- 00380_ VH-M4G(R): "ARGHSUB!" 00381_ Destroyed Scrap Shield. 00382_ Ion Engine destroyed. 00383_ B8-8W2(R) destroyed. 00387_ Acquired 25 matter. 00389_ VH-M4G(R) affixes Scrap Shield Fragment to Scrap Shield. 00391_ The unstable cave ceiling collapses. 00391_ VH-M4G(R) destroyed. 00397_ The unstable cave ceiling collapses. 00402_ Acquired 13 matter. 00405_ The unstable cave ceiling collapses. 00410_ Acquired Sub. Machine Gun. 00411_ The unstable cave ceiling collapses. 00420_ Acquired 21 matter. 00424_ The unstable cave ceiling collapses. 00449_ 6Q-7XF(R) destroyed. 00457_ Acquired 36 matter. 00476_ The unstable cave ceiling collapses. 00504_ S-10 Pest springs to life. 00505_ Grenade Launcher destroyed. Map ----- +----------------------------------------------------+ | ?????????????????????????????????????????????????? | | ?????????????????????????????????????????????????? | | ?????????????????????????????????????????????????? | | ?????????????????????????????????????????????????? | | ?????????????????????????????????????????????????? | | ?????????????????????????????????????????????????? | | ?????????????????????????????????????????????????? | | ?????????????????????????????????????????????????? | | ?????????????????????????????????????????????????? | | ?????????????????????????????????????????????????? | | ??????????????????????? #?????????????????????? | | ?????????????????????? #????????????????????? | | ??????????????????????# ##???????????????????? | | ??????????????????????# #???????????????????? | | ?????????????????????? #???????????????????? | | ??????????????????????? ##??????##??????????? | | ??????????????????????? ###??? """????????? | | ???????????????????????# ##? "????????? | | ??????????????????????## ## ?????????? | | ??????????????????????? s t"?????????? | | ???????????????????????# s ??????????? | | ??????????????????????## ss ????????????? | | ?????????????????????## #??????????????? | | ????????????????????## #????????????????? | | ????????????????????# #????????????????? | | ????????????????????# @ #???????????????????? | | ????????????????????## ########????????????? | | ??????????????????#### ##??????????? | | ?????????????????## #????###??? | | ?????????????????# ###### "## "? | | ????????????????## ### ## #?# """"" ""? | | ????????????##### ##?# ##?? #?#""""" """?? | | ??????????### # #??# ##???##?# " " ???? | | ?????????? # #??# ####???# !&& #????? | | ?????????? # ## ##?### #???# & ##????? | | ???????????### ?## ##??# ##??## && #????# | | ?????????????# ### #???# ###???# #####" | | ?????????????## # #???## #?????## ## " | | ????????????## ## #??### ####### # " | | ????????????# # #### = " | | ?????????# # ## # | | ??????????# & ######## ## | | ??????????# |%! ! ##??????#### ####? | | ??????????## *# # ##??????????###???? | | ???????????## # ##### ########?????????????????? | | ????????????# # #???????????????????????? | | ????????????### #######???????????????????????? | | ??????????????#####??????????????????????????????? | | ?????????????????????????????????????????????????? | | ?????????????????????????????????????????????????? | +----------------------------------------------------+ Best States ------------- Heat Dissipation 39 Energy Generation 10 Energy Capacity 250 Matter Stores 290 Matter Capacity 300 Sight Range 16 Terrain Scan Density 10 Evasion (%) 55 Item Schematics ----------------- None Robot Schematics ------------------ None Fabricated ------------ Nothing Repaired ---------- Nothing Studied --------- None Alien Tech Used ----------------- None Achievements -------------- DATA ERROR: Steam Global Achievement% Do Not Disturb For Emergencies Only Challenges ------------ None Game ------ Seed CoreRelayImpeller Manual? 0 Play Time 00:12:36 Cumulative 13.5 hours Start 2026.07.19 @ 14:47:45 End 2026.07.19 @ 15:01:18 Sessions 1 Manual Loads 0 Difficulty Rogue Special Mode None Game No. 24 Rogue 24 Adventurer 0 Explorer 0 Win Type - Total 0 Types 0/0/0/0/0/0/0/0/0/0 Lore% 9 Gallery% 14 Achievement% 7 Wizard Run 0 Options --------- Layout 0 ASCII 0 Keyboard 0 Movement Mouse Keybinds 0 Fullscreen 2 Font 18/SmallcapsGlow Map View 76x50 Zoom Use 0% Tactical HUD 1 Map Filters NONE Filters NONE Steam 1 RUN: 2f40ddb1-1ec5-4655-8fdc-166e6671ee10